[Event "Late-Titled-Tuesday-Blitz-July-09-2024"]
[Site "Chess.com"]
[Date "2024.07.09"]
[Round "1"]
[White "maurovargas01"]
[Black "myburger"]
[Result "0-1"]
[WhiteElo "1946"]
[BlackElo "2540"]
[TimeControl "180+1"]
[EndTime "14:09:13 PDT"]
[Termination "myburger won on time"]

1. e4 {[%clk 0:02:53]} 1... c5 {[%clk 0:02:57.1]} 2. Nc3 {[%clk 0:02:52.3]} 2...
g6 {[%clk 0:02:56.3]} 3. f4 {[%clk 0:02:49.2]} 3... Bg7 {[%clk 0:02:56.5]} 4.
Nf3 {[%clk 0:02:47.8]} 4... Nc6 {[%clk 0:02:52.9]} 5. Bb5 {[%clk 0:02:47.4]}
5... Nd4 {[%clk 0:02:52.5]} 6. Bf1 {[%clk 0:02:47.7]} 6... d6 {[%clk 0:02:43.3]}
7. h3 {[%clk 0:02:47.8]} 7... e5 {[%clk 0:02:40.6]} 8. Bc4 {[%clk 0:02:42.1]}
8... Ne7 {[%clk 0:02:25.2]} 9. d3 {[%clk 0:02:41.7]} 9... Nec6 {[%clk
0:02:24.4]} 10. O-O {[%clk 0:02:41]} 10... O-O {[%clk 0:02:22.2]} 11. Nd5 {[%clk
0:02:36]} 11... Nxf3+ {[%clk 0:02:19.4]} 12. Rxf3 {[%clk 0:02:33.9]} 12... Nd4
{[%clk 0:02:18.7]} 13. Rf1 {[%clk 0:02:29.3]} 13... Qh4 {[%clk 0:02:15.3]} 14.
fxe5 {[%clk 0:02:22.9]} 14... Bxe5 {[%clk 0:02:02.1]} 15. Bf4 {[%clk 0:02:10.5]}
15... Be6 {[%clk 0:01:48.1]} 16. Bxe5 {[%clk 0:02:09]} 16... dxe5 {[%clk
0:01:47.3]} 17. Nf6+ {[%clk 0:02:08.6]} 17... Kg7 {[%clk 0:01:42.9]} 18. c3
{[%clk 0:02:03.5]} 18... Bxc4 {[%clk 0:01:37.5]} 19. dxc4 {[%clk 0:02:02.5]}
19... Ne6 {[%clk 0:01:33.7]} 20. Qd5 {[%clk 0:01:40.7]} 20... Qg5 {[%clk
0:00:45.4]} 21. Ng4 {[%clk 0:01:29.4]} 21... h5 {[%clk 0:00:33.6]} 22. Qxe5+
{[%clk 0:01:28.2]} 22... Qxe5 {[%clk 0:00:32]} 23. Nxe5 {[%clk 0:01:27.8]} 23...
Ng5 {[%clk 0:00:31.5]} 24. Nd7 {[%clk 0:01:15.4]} 24... Rfd8 {[%clk 0:00:26.1]}
25. Nxc5 {[%clk 0:01:15.2]} 25... b6 {[%clk 0:00:25.7]} 26. h4 {[%clk
0:01:02.1]} 26... Nh3+ {[%clk 0:00:21.5]} 27. gxh3 {[%clk 0:00:59]} 27... bxc5
{[%clk 0:00:22.4]} 28. Rad1 {[%clk 0:00:56.8]} 28... Re8 {[%clk 0:00:20.9]} 29.
Rfe1 {[%clk 0:00:55.5]} 29... Rab8 {[%clk 0:00:20.6]} 30. Rd2 {[%clk 0:00:54.9]}
30... Re5 {[%clk 0:00:19.8]} 31. Kg2 {[%clk 0:00:52.7]} 31... f5 {[%clk
0:00:19.5]} 32. Rde2 {[%clk 0:00:42]} 32... fxe4 {[%clk 0:00:18.2]} 33. Kg3
{[%clk 0:00:40.7]} 33... Rbe8 {[%clk 0:00:16.8]} 34. Rd1 {[%clk 0:00:35.4]}
34... Kf6 {[%clk 0:00:16.5]} 35. Rd6+ {[%clk 0:00:31.4]} 35... Kg7 {[%clk
0:00:16.3]} 36. Rd7+ {[%clk 0:00:30.8]} 36... R8e7 {[%clk 0:00:16.6]} 37. Rxe7+
{[%clk 0:00:29.7]} 37... Rxe7 {[%clk 0:00:17.5]} 38. Kf4 {[%clk 0:00:29.8]}
38... Kf6 {[%clk 0:00:16.7]} 39. Rxe4 {[%clk 0:00:28]} 39... Rb7 {[%clk
0:00:16.9]} 40. Re2 {[%clk 0:00:26.8]} 40... a5 {[%clk 0:00:16.4]} 41. Rd2
{[%clk 0:00:21.8]} 41... a4 {[%clk 0:00:15.4]} 42. Rd6+ {[%clk 0:00:20.3]} 42...
Kg7 {[%clk 0:00:15.8]} 43. Rd2 {[%clk 0:00:17.3]} 43... a3 {[%clk 0:00:15.2]}
44. b3 {[%clk 0:00:17.2]} 44... Kf6 {[%clk 0:00:14.4]} 45. Rd6+ {[%clk
0:00:15.6]} 45... Kf7 {[%clk 0:00:13.8]} 46. Rd5 {[%clk 0:00:15.4]} 46... Rc7
{[%clk 0:00:11.7]} 47. Kg5 {[%clk 0:00:13.6]} 47... Rc6 {[%clk 0:00:09.6]} 48.
Rd7+ {[%clk 0:00:12.8]} 48... Ke6 {[%clk 0:00:09.9]} 49. Rd5 {[%clk 0:00:13]}
49... Kf7 {[%clk 0:00:09.8]} 50. Rd7+ {[%clk 0:00:12.6]} 50... Ke8 {[%clk
0:00:10.4]} 51. Ra7 {[%clk 0:00:11.4]} 51... Re6 {[%clk 0:00:07.6]} 52. Rxa3
{[%clk 0:00:10.8]} 52... Re3 {[%clk 0:00:08]} 53. Kxg6 {[%clk 0:00:07.3]} 53...
Rxc3 {[%clk 0:00:07]} 54. Kxh5 {[%clk 0:00:06.8]} 54... Rxh3 {[%clk 0:00:07.6]}
55. Kg5 {[%clk 0:00:06.8]} 55... Ke7 {[%clk 0:00:07.6]} 56. h5 {[%clk 0:00:07]}
56... Rg3+ {[%clk 0:00:07.4]} 57. Kf4 {[%clk 0:00:06.5]} 57... Rg1 {[%clk
0:00:08.3]} 58. h6 {[%clk 0:00:06.3]} 58... Rh1 {[%clk 0:00:08.1]} 59. Ra7+
{[%clk 0:00:06.6]} 59... Kd6 {[%clk 0:00:08.4]} 60. h7 {[%clk 0:00:05.8]} 60...
Ke6 {[%clk 0:00:05.6]} 61. Ke4 {[%clk 0:00:05.5]} 61... Kf6 {[%clk 0:00:05.9]}
62. Kd5 {[%clk 0:00:05.5]} 62... Rh5+ {[%clk 0:00:05.7]} 63. Kd6 {[%clk
0:00:05.6]} 63... Kg6 {[%clk 0:00:06.6]} 64. Ra6 {[%clk 0:00:03.1]} 64... Rxh7
{[%clk 0:00:05.9]} 65. Kxc5+ {[%clk 0:00:02.9]} 65... Kf5 {[%clk 0:00:06.8]} 66.
Kb4 {[%clk 0:00:03.1]} 66... Ke4 {[%clk 0:00:06.7]} 67. Ra5 {[%clk 0:00:03.1]}
67... Rb7+ {[%clk 0:00:05.8]} 68. Rb5 {[%clk 0:00:03.2]} 68... Rc7 {[%clk
0:00:06.7]} 69. Rc5 {[%clk 0:00:03.2]} 69... Rb7+ {[%clk 0:00:06.1]} 70. Rb5
{[%clk 0:00:04.1]} 70... Rc7 {[%clk 0:00:06.8]} 71. a4 {[%clk 0:00:04.3]} 71...
Kd4 {[%clk 0:00:06.4]} 72. a5 {[%clk 0:00:03.5]} 72... Kd3 {[%clk 0:00:06.6]}
73. a6 {[%clk 0:00:03.4]} 73... Kc2 {[%clk 0:00:06.8]} 74. Ra5 {[%clk
0:00:02.7]} 74... Rc8 {[%clk 0:00:06.6]} 75. a7 {[%clk 0:00:02.5]} 75... Ra8
{[%clk 0:00:07.5]} 76. c5 {[%clk 0:00:02.5]} 76... Rf8 {[%clk 0:00:08.2]} 77.
Kb5 {[%clk 0:00:02.1]} 77... Rf4 {[%clk 0:00:09.1]} 78. b4 {[%clk 0:00:02.3]}
78... Rf3 {[%clk 0:00:09.9]} 0-1

[Event "Late-Titled-Tuesday-Blitz-July-09-2024"]
[Site "Chess.com"]
[Date "2024.07.09"]
[Round "2"]
[White "merinasian"]
[Black "ElCoachRene"]
[Result "1-0"]
[WhiteElo "2422"]
[BlackElo "1910"]
[TimeControl "180+1"]
[EndTime "14:12:48 PDT"]
[Termination "merinasian won by checkmate"]

1. d4 {[%clk 0:03:00.9]} 1... Nc6 {[%clk 0:02:53.8]} 2. Nf3 {[%clk 0:02:46.8]}
2... d5 {[%clk 0:02:52.7]} 3. g3 {[%clk 0:02:46.8]} 3... Nf6 {[%clk 0:02:50]} 4.
Bg2 {[%clk 0:02:44.3]} 4... Bf5 {[%clk 0:02:49.1]} 5. O-O {[%clk 0:02:44.4]}
5... Qd7 {[%clk 0:02:49.2]} 6. c4 {[%clk 0:02:44.6]} 6... Bh3 {[%clk 0:02:46.5]}
7. cxd5 {[%clk 0:02:43.4]} 7... Nxd5 {[%clk 0:02:44.1]} 8. e4 {[%clk 0:02:43.4]}
8... Bxg2 {[%clk 0:02:41.1]} 9. Kxg2 {[%clk 0:02:40.6]} 9... Nb6 {[%clk
0:02:37]} 10. d5 {[%clk 0:02:40.8]} 10... O-O-O {[%clk 0:02:33.8]} 11. Qe2
{[%clk 0:02:39.9]} 11... Nb8 {[%clk 0:02:04.5]} 12. Nc3 {[%clk 0:02:39.6]} 12...
e6 {[%clk 0:02:02.7]} 13. Nb5 {[%clk 0:02:39.3]} 13... a6 {[%clk 0:01:59]} 14.
Na7# {[%clk 0:02:38.9]} 1-0

[Event "Late-Titled-Tuesday-Blitz-July-09-2024"]
[Site "Chess.com"]
[Date "2024.07.09"]
[Round "2"]
[White "GilbertoHernandezAmura"]
[Black "schachlana"]
[Result "1-0"]
[WhiteElo "2516"]
[BlackElo "2312"]
[TimeControl "180+1"]
[EndTime "14:13:42 PDT"]
[Termination "GilbertoHernandezAmura won by resignation"]

1. d4 {[%clk 0:03:00.9]} 1... Nf6 {[%clk 0:02:52.6]} 2. Nf3 {[%clk 0:02:58.5]}
2... g6 {[%clk 0:02:52.5]} 3. g3 {[%clk 0:02:58.7]} 3... Bg7 {[%clk 0:02:53.4]}
4. Bg2 {[%clk 0:02:58.2]} 4... d6 {[%clk 0:02:54.3]} 5. O-O {[%clk 0:02:58.3]}
5... O-O {[%clk 0:02:55.2]} 6. c4 {[%clk 0:02:57.1]} 6... c5 {[%clk 0:02:54.8]}
7. dxc5 {[%clk 0:02:47.5]} 7... dxc5 {[%clk 0:02:55.7]} 8. Nc3 {[%clk 0:02:48]}
8... Nc6 {[%clk 0:02:53.5]} 9. Be3 {[%clk 0:02:45.6]} 9... Be6 {[%clk
0:02:48.9]} 10. Bxc5 {[%clk 0:02:44.3]} 10... Bxc4 {[%clk 0:02:48.7]} 11. Qa4
{[%clk 0:02:44.4]} 11... b5 {[%clk 0:02:43]} 12. Nxb5 {[%clk 0:02:37.9]} 12...
Bxe2 {[%clk 0:02:42.3]} 13. Rfe1 {[%clk 0:02:38.3]} 13... Bxb5 {[%clk
0:02:29.6]} 14. Qxb5 {[%clk 0:02:38.4]} 14... Rc8 {[%clk 0:02:27.8]} 15. Rad1
{[%clk 0:02:31.3]} 15... Qc7 {[%clk 0:02:25.3]} 16. Rc1 {[%clk 0:02:19.3]} 16...
Rfd8 {[%clk 0:02:00.1]} 17. Bxe7 {[%clk 0:02:16.7]} 17... Re8 {[%clk 0:01:55.5]}
18. Bxf6 {[%clk 0:02:14.9]} 18... Rxe1+ {[%clk 0:01:55.2]} 19. Nxe1 {[%clk
0:02:15.8]} 19... Bxf6 {[%clk 0:01:47.3]} 20. Qxc6 {[%clk 0:02:13.8]} 1-0

[Event "Late-Titled-Tuesday-Blitz-July-09-2024"]
[Site "Chess.com"]
[Date "2024.07.09"]
[Round "2"]
[White "Crazy_girl99"]
[Black "marvinguevara"]
[Result "1-0"]
[WhiteElo "2674"]
[BlackElo "2072"]
[TimeControl "180+1"]
[EndTime "14:14:14 PDT"]
[Termination "Crazy_girl99 won by checkmate"]

1. e4 {[%clk 0:03:00.9]} 1... c5 {[%clk 0:02:59.3]} 2. Nf3 {[%clk 0:03:00.8]}
2... Nc6 {[%clk 0:02:58.8]} 3. Bb5 {[%clk 0:03:00.6]} 3... Nd4 {[%clk
0:02:56.2]} 4. Nxd4 {[%clk 0:02:57.2]} 4... cxd4 {[%clk 0:02:57.1]} 5. O-O
{[%clk 0:02:57.4]} 5... e6 {[%clk 0:02:56.2]} 6. d3 {[%clk 0:02:56.5]} 6... a6
{[%clk 0:02:56]} 7. Ba4 {[%clk 0:02:55.7]} 7... b5 {[%clk 0:02:52]} 8. Bb3
{[%clk 0:02:55.4]} 8... Bc5 {[%clk 0:02:51]} 9. Nd2 {[%clk 0:02:55.4]} 9... Ne7
{[%clk 0:02:48.7]} 10. f4 {[%clk 0:02:55]} 10... f5 {[%clk 0:02:45.2]} 11. Qe2
{[%clk 0:02:54.3]} 11... Qc7 {[%clk 0:02:42.9]} 12. exf5 {[%clk 0:02:51]} 12...
Nxf5 {[%clk 0:02:42]} 13. Ne4 {[%clk 0:02:51.4]} 13... Bb6 {[%clk 0:02:33.2]}
14. Kh1 {[%clk 0:02:50.3]} 14... O-O {[%clk 0:02:21.8]} 15. Bd2 {[%clk
0:02:46.3]} 15... Kh8 {[%clk 0:02:20.5]} 16. Rf3 {[%clk 0:02:45]} 16... Bb7
{[%clk 0:02:19.1]} 17. Rh3 {[%clk 0:02:44.9]} 17... h6 {[%clk 0:01:33.1]} 18.
Rf1 {[%clk 0:02:44]} 18... Kh7 {[%clk 0:01:30.5]} 19. Qh5 {[%clk 0:02:40]} 19...
Rae8 {[%clk 0:01:14.1]} 20. Ng5+ {[%clk 0:02:33.7]} 20... Kg8 {[%clk 0:01:11.9]}
21. Qg6 {[%clk 0:02:34.2]} 21... Rf6 {[%clk 0:01:07.4]} 22. Qxe8+ {[%clk
0:02:33.6]} 22... Rf8 {[%clk 0:01:06]} 23. Qg6 {[%clk 0:02:34]} 23... a5 {[%clk
0:01:01.6]} 24. Qh7# {[%clk 0:02:33.5]} 1-0

[Event "Late-Titled-Tuesday-Blitz-July-09-2024"]
[Site "Chess.com"]
[Date "2024.07.09"]
[Round "2"]
[White "ManMish2"]
[Black "schondeln"]
[Result "1-0"]
[WhiteElo "2595"]
[BlackElo "2365"]
[TimeControl "180+1"]
[EndTime "14:14:16 PDT"]
[Termination "ManMish2 won by checkmate"]

1. e4 {[%clk 0:03:00.9]} 1... d5 {[%clk 0:02:59.5]} 2. exd5 {[%clk 0:03:01.7]}
2... Qxd5 {[%clk 0:02:59.5]} 3. Nc3 {[%clk 0:03:01.3]} 3... Qa5 {[%clk
0:02:59.3]} 4. Nf3 {[%clk 0:03:00.1]} 4... Nf6 {[%clk 0:02:59.3]} 5. d4 {[%clk
0:02:58.8]} 5... Bf5 {[%clk 0:02:57.7]} 6. Bc4 {[%clk 0:02:59.1]} 6... e6 {[%clk
0:02:57.6]} 7. O-O {[%clk 0:02:58.7]} 7... c6 {[%clk 0:02:53.2]} 8. Bf4 {[%clk
0:02:58.1]} 8... Nbd7 {[%clk 0:02:51.7]} 9. Re1 {[%clk 0:02:56.8]} 9... Be7
{[%clk 0:02:51.7]} 10. h3 {[%clk 0:02:55.3]} 10... O-O {[%clk 0:02:50.4]} 11.
Nh4 {[%clk 0:02:52]} 11... Bg6 {[%clk 0:02:50.3]} 12. Nxg6 {[%clk 0:02:51.8]}
12... hxg6 {[%clk 0:02:51.2]} 13. Bb3 {[%clk 0:02:45]} 13... Rad8 {[%clk
0:02:47.4]} 14. Qf3 {[%clk 0:02:36.3]} 14... Rfe8 {[%clk 0:02:37.8]} 15. Rad1
{[%clk 0:02:33.9]} 15... Nd5 {[%clk 0:02:31.8]} 16. Nxd5 {[%clk 0:02:29.6]}
16... cxd5 {[%clk 0:02:31.7]} 17. c3 {[%clk 0:02:27.4]} 17... Qb6 {[%clk
0:02:29.8]} 18. Qg3 {[%clk 0:02:25.1]} 18... Nf6 {[%clk 0:02:27.3]} 19. Bc7
{[%clk 0:02:24.1]} 19... Qc6 {[%clk 0:02:20.4]} 20. Bxd8 {[%clk 0:02:23.5]}
20... Rxd8 {[%clk 0:02:21.3]} 21. Qf3 {[%clk 0:02:22.5]} 21... Bd6 {[%clk
0:02:21]} 22. g3 {[%clk 0:02:20.6]} 22... b5 {[%clk 0:02:20.6]} 23. a3 {[%clk
0:02:11.8]} 23... a5 {[%clk 0:02:20.7]} 24. Bc2 {[%clk 0:02:08.3]} 24... Qb6
{[%clk 0:02:19.3]} 25. Bd3 {[%clk 0:02:05.3]} 25... Rc8 {[%clk 0:02:17.4]} 26.
Rc1 {[%clk 0:02:04.2]} 26... Rc7 {[%clk 0:02:11.8]} 27. Qe2 {[%clk 0:02:03.7]}
27... Rb7 {[%clk 0:02:11.6]} 28. b4 {[%clk 0:02:02.9]} 28... axb4 {[%clk
0:02:06.4]} 29. axb4 {[%clk 0:02:03.8]} 29... Qc6 {[%clk 0:02:06.7]} 30. Rc2
{[%clk 0:02:00.8]} 30... Nd7 {[%clk 0:02:06.6]} 31. Ra1 {[%clk 0:01:59.8]} 31...
e5 {[%clk 0:02:07.1]} 32. Ra8+ {[%clk 0:01:53.8]} 32... Kh7 {[%clk 0:02:03.8]}
33. Qh5# {[%clk 0:01:52.9]} 1-0

[Event "Late-Titled-Tuesday-Blitz-July-09-2024"]
[Site "Chess.com"]
[Date "2024.07.09"]
[Round "2"]
[White "ELPRIMO0O0"]
[Black "DanielDardha2005"]
[Result "0-1"]
[WhiteElo "2601"]
[BlackElo "2903"]
[TimeControl "180+1"]
[EndTime "14:14:23 PDT"]
[Termination "DanielDardha2005 won by resignation"]

1. e4 {[%clk 0:03:00.9]} 1... c6 {[%clk 0:02:33.8]} 2. d4 {[%clk 0:02:59]} 2...
d5 {[%clk 0:02:33.8]} 3. e5 {[%clk 0:02:59.5]} 3... Bf5 {[%clk 0:02:33.1]} 4.
Nc3 {[%clk 0:03:00]} 4... e6 {[%clk 0:02:24.6]} 5. g4 {[%clk 0:03:00.3]} 5...
Bg6 {[%clk 0:02:25.2]} 6. Nge2 {[%clk 0:03:00.9]} 6... h6 {[%clk 0:02:24.3]} 7.
Nf4 {[%clk 0:03:00.5]} 7... Bh7 {[%clk 0:02:24.6]} 8. Bd3 {[%clk 0:03:01.1]}
8... Bxd3 {[%clk 0:02:24.3]} 9. Nxd3 {[%clk 0:03:02]} 9... Nd7 {[%clk
0:02:19.8]} 10. Be3 {[%clk 0:02:59.8]} 10... Ne7 {[%clk 0:02:16.3]} 11. Qe2
{[%clk 0:02:59.6]} 11... c5 {[%clk 0:02:13.9]} 12. dxc5 {[%clk 0:02:52.2]} 12...
Nc6 {[%clk 0:02:12.9]} 13. O-O-O {[%clk 0:01:48.9]} 13... d4 {[%clk 0:02:08.7]}
14. Ne4 {[%clk 0:01:49]} 14... dxe3 {[%clk 0:02:06.9]} 15. Qxe3 {[%clk
0:01:49.9]} 15... Qa5 {[%clk 0:02:03.1]} 16. f4 {[%clk 0:01:45.4]} 16... Qxa2
{[%clk 0:02:00.3]} 17. f5 {[%clk 0:01:38.7]} 17... O-O-O {[%clk 0:01:57.2]} 18.
Nd6+ {[%clk 0:01:33.4]} 18... Bxd6 {[%clk 0:01:55.8]} 19. cxd6 {[%clk
0:01:34.3]} 19... Ndxe5 {[%clk 0:01:51.9]} 20. Nxe5 {[%clk 0:01:30.1]} 20...
Qa1+ {[%clk 0:01:51.5]} 21. Kd2 {[%clk 0:01:31]} 21... Qa5+ {[%clk 0:01:52]} 0-1

[Event "Late-Titled-Tuesday-Blitz-July-09-2024"]
[Site "Chess.com"]
[Date "2024.07.09"]
[Round "2"]
[White "OparinGrigoriy"]
[Black "vladjianu"]
[Result "1-0"]
[WhiteElo "3006"]
[BlackElo "2633"]
[TimeControl "180+1"]
[EndTime "14:14:24 PDT"]
[Termination "OparinGrigoriy won by resignation"]

1. Nc3 {[%clk 0:03:00.9]} 1... d6 {[%clk 0:02:54.7]} 2. e4 {[%clk 0:02:55.5]}
2... g6 {[%clk 0:02:55.1]} 3. d4 {[%clk 0:02:55]} 3... Bg7 {[%clk 0:02:55]} 4.
f4 {[%clk 0:02:55.5]} 4... Nf6 {[%clk 0:02:51.6]} 5. Nf3 {[%clk 0:02:55.4]} 5...
O-O {[%clk 0:02:41.2]} 6. e5 {[%clk 0:02:55.4]} 6... Nfd7 {[%clk 0:02:35.9]} 7.
e6 {[%clk 0:02:55.7]} 7... fxe6 {[%clk 0:02:32.1]} 8. h4 {[%clk 0:02:56.3]} 8...
c5 {[%clk 0:02:29.7]} 9. h5 {[%clk 0:02:53.9]} 9... cxd4 {[%clk 0:02:28]} 10.
Nxd4 {[%clk 0:02:49.3]} 10... Nc5 {[%clk 0:02:22.9]} 11. hxg6 {[%clk 0:02:49.6]}
11... hxg6 {[%clk 0:02:23.8]} 12. Qg4 {[%clk 0:02:47]} 12... Rf6 {[%clk
0:02:23.3]} 13. Qh4 {[%clk 0:02:40.8]} 13... Nc6 {[%clk 0:02:20]} 14. Be3 {[%clk
0:02:40.4]} 14... e5 {[%clk 0:02:17.8]} 15. Nxc6 {[%clk 0:02:38.8]} 15... bxc6
{[%clk 0:02:17.8]} 16. O-O-O {[%clk 0:02:38.2]} 16... Qf8 {[%clk 0:01:47.4]} 17.
fxe5 {[%clk 0:02:32.3]} 17... Rf5 {[%clk 0:01:32.7]} 18. Bxc5 {[%clk 0:02:27.1]}
18... dxc5 {[%clk 0:01:29.3]} 19. Bc4+ {[%clk 0:02:26.4]} 19... e6 {[%clk
0:01:29.8]} 20. Rd8 {[%clk 0:02:26.1]} 20... Rh5 {[%clk 0:01:17.3]} 21. Rxf8+
{[%clk 0:02:24.3]} 21... Bxf8 {[%clk 0:01:18.2]} 22. Qe1 {[%clk 0:02:22.4]}
22... Rxh1 {[%clk 0:01:13.7]} 23. Qxh1 {[%clk 0:02:23.3]} 23... Bg7 {[%clk
0:01:14.3]} 24. Ne4 {[%clk 0:02:22.3]} 24... Bxe5 {[%clk 0:01:12.9]} 25. Qh6
{[%clk 0:02:22.8]} 1-0

[Event "Late-Titled-Tuesday-Blitz-July-09-2024"]
[Site "Chess.com"]
[Date "2024.07.09"]
[Round "2"]
[White "WPWPWP-2015"]
[Black "mouseslips_are_the_best"]
[Result "1-0"]
[WhiteElo "2511"]
[BlackElo "2296"]
[TimeControl "180+1"]
[EndTime "14:14:37 PDT"]
[Termination "WPWPWP-2015 won by resignation"]

1. e4 {[%clk 0:03:00.9]} 1... e6 {[%clk 0:02:57.3]} 2. d4 {[%clk 0:03:00.2]}
2... d5 {[%clk 0:02:57.8]} 3. Nd2 {[%clk 0:03:00.6]} 3... c5 {[%clk 0:02:57.2]}
4. Ne2 {[%clk 0:02:59.5]} 4... Nc6 {[%clk 0:02:53.3]} 5. c3 {[%clk 0:02:56.5]}
5... cxd4 {[%clk 0:02:50.2]} 6. exd5 {[%clk 0:02:54.1]} 6... Qxd5 {[%clk
0:02:47.9]} 7. cxd4 {[%clk 0:02:48.3]} 7... Nxd4 {[%clk 0:02:46.2]} 8. Qa4+
{[%clk 0:02:47]} 8... Nc6 {[%clk 0:02:45.1]} 9. Nc3 {[%clk 0:02:44.4]} 9... Qd8
{[%clk 0:02:38.3]} 10. Bb5 {[%clk 0:02:43.3]} 10... Bd7 {[%clk 0:02:37.6]} 11.
O-O {[%clk 0:02:42.2]} 11... a6 {[%clk 0:02:36.8]} 12. Be2 {[%clk 0:02:30.1]}
12... Bc5 {[%clk 0:02:31.4]} 13. Qg4 {[%clk 0:02:27.6]} 13... Qf6 {[%clk
0:02:25.4]} 14. Nde4 {[%clk 0:02:26.8]} 14... Qe7 {[%clk 0:02:14.7]} 15. Nxc5
{[%clk 0:02:10.6]} 15... Qxc5 {[%clk 0:02:15.6]} 16. Be3 {[%clk 0:01:54.9]}
16... Qf8 {[%clk 0:02:10]} 17. Rfd1 {[%clk 0:01:48.8]} 17... Nf6 {[%clk
0:02:08.9]} 18. Qh4 {[%clk 0:01:43.7]} 18... Qe7 {[%clk 0:02:07.6]} 19. Bg5
{[%clk 0:01:41.3]} 19... O-O {[%clk 0:02:04.4]} 20. Ne4 {[%clk 0:01:40.3]} 20...
Ne5 {[%clk 0:01:48.7]} 21. Nxf6+ {[%clk 0:01:29.7]} 21... gxf6 {[%clk
0:01:47.2]} 22. Bxf6 {[%clk 0:01:29.5]} 22... Qc5 {[%clk 0:01:47.4]} 23. Qh6
{[%clk 0:01:26.6]} 1-0

[Event "Late-Titled-Tuesday-Blitz-July-09-2024"]
[Site "Chess.com"]
[Date "2024.07.09"]
[Round "2"]
[White "Chempiblinka"]
[Black "Snowball-03"]
[Result "0-1"]
[WhiteElo "2370"]
[BlackElo "2613"]
[TimeControl "180+1"]
[EndTime "14:15:02 PDT"]
[Termination "Snowball-03 won by resignation"]

1. Nf3 {[%clk 0:03:00.9]} 1... Nf6 {[%clk 0:02:58.6]} 2. g3 {[%clk 0:03:01]}
2... g6 {[%clk 0:02:58.9]} 3. Bg2 {[%clk 0:03:01]} 3... Bg7 {[%clk 0:02:59.8]}
4. O-O {[%clk 0:03:00.1]} 4... d6 {[%clk 0:03:00.7]} 5. c4 {[%clk 0:03:00.4]}
5... O-O {[%clk 0:03:01.6]} 6. d4 {[%clk 0:03:00.4]} 6... c5 {[%clk 0:03:02]} 7.
Nc3 {[%clk 0:02:57.6]} 7... Nc6 {[%clk 0:03:01.5]} 8. b3 {[%clk 0:02:45.4]} 8...
Bf5 {[%clk 0:02:45.8]} 9. e3 {[%clk 0:02:38.1]} 9... Ne4 {[%clk 0:02:36.5]} 10.
Bb2 {[%clk 0:02:31]} 10... Nxc3 {[%clk 0:02:20.2]} 11. Bxc3 {[%clk 0:02:31.9]}
11... Be4 {[%clk 0:02:20.7]} 12. Qd2 {[%clk 0:02:09.9]} 12... Qc8 {[%clk
0:01:53.4]} 13. Ng5 {[%clk 0:01:57.3]} 13... Bxg2 {[%clk 0:01:52]} 14. Kxg2
{[%clk 0:01:57.1]} 14... Qf5 {[%clk 0:01:48.6]} 15. Nh3 {[%clk 0:01:55.4]} 15...
cxd4 {[%clk 0:01:45.7]} 16. exd4 {[%clk 0:01:52.4]} 16... Bxd4 {[%clk
0:01:43.7]} 17. Bxd4 {[%clk 0:01:51.6]} 17... Qe4+ {[%clk 0:01:44]} 18. f3
{[%clk 0:01:08.2]} 18... Qxd4 {[%clk 0:01:43.5]} 19. Qh6 {[%clk 0:01:08.1]}
19... Qb2+ {[%clk 0:01:42.3]} 20. Kg1 {[%clk 0:01:08]} 20... Qg7 {[%clk
0:01:37.6]} 0-1

[Event "Late-Titled-Tuesday-Blitz-July-09-2024"]
[Site "Chess.com"]
[Date "2024.07.09"]
[Round "2"]
[White "Proteuo"]
[Black "ilya2700"]
[Result "0-1"]
[WhiteElo "2460"]
[BlackElo "2248"]
[TimeControl "180+1"]
[EndTime "14:15:24 PDT"]
[Termination "ilya2700 won by resignation"]

1. e4 {[%clk 0:03:00.9]} 1... c5 {[%clk 0:03:00]} 2. Ne2 {[%clk 0:03:00.3]} 2...
e6 {[%clk 0:03:00.2]} 3. g3 {[%clk 0:02:59.7]} 3... d5 {[%clk 0:03:00.1]} 4.
exd5 {[%clk 0:02:58.5]} 4... exd5 {[%clk 0:03:01]} 5. Bg2 {[%clk 0:02:58.6]}
5... Nc6 {[%clk 0:03:01.4]} 6. O-O {[%clk 0:02:58]} 6... Nf6 {[%clk 0:03:01.7]}
7. d4 {[%clk 0:02:57.8]} 7... Bd6 {[%clk 0:03:00.6]} 8. Nbc3 {[%clk 0:02:55.7]}
8... Be6 {[%clk 0:02:58.7]} 9. Bg5 {[%clk 0:02:54.8]} 9... O-O {[%clk
0:02:58.1]} 10. Re1 {[%clk 0:02:43.2]} 10... h6 {[%clk 0:02:56.6]} 11. Bxf6
{[%clk 0:02:42.8]} 11... Qxf6 {[%clk 0:02:57.5]} 12. dxc5 {[%clk 0:02:26.7]}
12... Bxc5 {[%clk 0:02:58.4]} 13. Nf4 {[%clk 0:02:27.2]} 13... Rad8 {[%clk
0:02:44]} 14. Qd2 {[%clk 0:02:17.4]} 14... Ne5 {[%clk 0:02:29.2]} 15. Ncxd5
{[%clk 0:02:08.2]} 15... Bxd5 {[%clk 0:02:23.7]} 16. Nxd5 {[%clk 0:02:07.7]}
16... Nf3+ {[%clk 0:01:58.2]} 17. Bxf3 {[%clk 0:02:02]} 17... Qxf3 {[%clk
0:01:59.1]} 18. c4 {[%clk 0:01:57.4]} 18... Rfe8 {[%clk 0:01:59.1]} 19. b3
{[%clk 0:01:56]} 19... a5 {[%clk 0:01:53.7]} 20. Rxe8+ {[%clk 0:01:49.8]} 20...
Rxe8 {[%clk 0:01:54.6]} 21. Rf1 {[%clk 0:01:09.6]} 21... Re2 {[%clk 0:01:47.2]}
22. Qf4 {[%clk 0:01:01.3]} 22... Bxf2+ {[%clk 0:01:46.3]} 23. Rxf2 {[%clk
0:00:59.5]} 23... Re1+ {[%clk 0:01:46.3]} 0-1